[Event "*** Titled Tuesday Blitz"]
[Site "Chess.com"]
[Date "2019.02.05"]
[Round "4"]
[White "nailbeshirli"]
[Black "jsdbv18"]
[Result "1-0"]
[WhiteElo "2683"]
[BlackElo "2477"]
[TimeControl "180+2"]
[EndTime "13:46:25 PST"]
[Termination "nailbeshirli won by resignation"]

1. e4 {[%clk 0:03:01.9]} 1... c5 {[%clk 0:02:58]} 2. Nf3 {[%clk 0:02:52.1]} 2...
d6 {[%clk 0:02:59.3]} 3. Nc3 {[%clk 0:02:03.7]} 3... Nf6 {[%clk 0:02:58.6]} 4.
e5 {[%clk 0:02:03.5]} 4... dxe5 {[%clk 0:02:59.4]} 5. Nxe5 {[%clk 0:02:05.4]}
5... Nbd7 {[%clk 0:03:00.9]} 6. Nc4 {[%clk 0:01:18.7]} 6... g6 {[%clk
0:02:54.9]} 7. d4 {[%clk 0:01:09.2]} 7... cxd4 {[%clk 0:02:54.5]} 8. Qxd4 {[%clk
0:01:10.1]} 8... Bg7 {[%clk 0:02:55.7]} 9. Bg5 {[%clk 0:01:05]} 9... O-O {[%clk
0:02:56.8]} 10. O-O-O {[%clk 0:01:06.6]} 10... Qc7 {[%clk 0:02:51.6]} 11. Kb1
{[%clk 0:01:03]} 11... a6 {[%clk 0:02:41]} 12. Qf4 {[%clk 0:00:58.5]} 12... Qc5
{[%clk 0:02:26.9]} 13. h4 {[%clk 0:00:51.8]} 13... b5 {[%clk 0:02:24.1]} 14. Na5
{[%clk 0:00:50.3]} 14... b4 {[%clk 0:02:14.7]} 15. Nb3 {[%clk 0:00:50.9]} 15...
Qb6 {[%clk 0:02:04.8]} 16. Na4 {[%clk 0:00:48]} 16... Qb5 {[%clk 0:01:56.8]} 17.
Bxb5 {[%clk 0:00:46.2]} 17... axb5 {[%clk 0:01:55.3]} 18. Nac5 {[%clk
0:00:46.6]} 18... Nxc5 {[%clk 0:01:55.2]} 19. Nxc5 {[%clk 0:00:48.5]} 1-0

[Event "*** Titled Tuesday Blitz"]
[Site "Chess.com"]
[Date "2019.02.05"]
[Round "4"]
[White "Orlovachess"]
[Black "aa175"]
[Result "0-1"]
[WhiteElo "1407"]
[BlackElo "1933"]
[TimeControl "180+2"]
[EndTime "13:46:27 PST"]
[Termination "aa175 won on time"]

1. b3 {[%clk 0:03:01.9]} 1... e5 {[%clk 0:02:58.8]} 2. Bb2 {[%clk 0:03:02.6]}
2... Nc6 {[%clk 0:02:59.3]} 3. e3 {[%clk 0:03:03.8]} 3... Nf6 {[%clk 0:02:54.8]}
4. Bb5 {[%clk 0:03:03]} 4... Bd6 {[%clk 0:02:55]} 5. Na3 {[%clk 0:02:57.9]} 5...
Qe7 {[%clk 0:02:52.5]} 6. Nc4 {[%clk 0:02:57.1]} 6... a6 {[%clk 0:02:52.8]} 7.
Bxc6 {[%clk 0:02:55.2]} 7... dxc6 {[%clk 0:02:53.8]} 8. d3 {[%clk 0:02:46.4]}
8... O-O {[%clk 0:02:52.8]} 9. h3 {[%clk 0:02:36.9]} 9... b5 {[%clk 0:02:47.4]}
10. Nd2 {[%clk 0:02:30.2]} 10... Bb7 {[%clk 0:02:43.6]} 11. Ngf3 {[%clk
0:01:12.1]} 11... a5 {[%clk 0:02:40.9]} 12. O-O {[%clk 0:01:06.7]} 12... a4
{[%clk 0:02:39.8]} 13. c4 {[%clk 0:00:55.3]} 13... a3 {[%clk 0:02:39.5]} 14. Bc1
{[%clk 0:00:56.1]} 14... b4 {[%clk 0:02:38.9]} 15. Qc2 {[%clk 0:00:33.1]} 15...
c5 {[%clk 0:02:27.4]} 16. Ng5 {[%clk 0:00:09.1]} 16... h6 {[%clk 0:02:27.8]} 17.
Nge4 {[%clk 0:00:09.2]} 17... Nd7 {[%clk 0:02:27.6]} 18. Nxd6 {[%clk 0:00:06.6]}
18... Qxd6 {[%clk 0:02:29.1]} 19. Ne4 {[%clk 0:00:05.9]} 19... Qg6 {[%clk
0:02:31]} 0-1

[Event "*** Titled Tuesday Blitz"]
[Site "Chess.com"]
[Date "2019.02.05"]
[Round "4"]
[White "FearNoEvil12"]
[Black "Thefirstchess"]
[Result "1-0"]
[WhiteElo "1950"]
[BlackElo "1969"]
[TimeControl "180+2"]
[EndTime "13:46:33 PST"]
[Termination "FearNoEvil12 won on time"]

1. e4 {[%clk 0:03:01.9]} 1... c5 {[%clk 0:03:00.8]} 2. Nc3 {[%clk 0:03:01.9]}
2... Nc6 {[%clk 0:03:02.7]} 3. f4 {[%clk 0:03:03]} 3... g6 {[%clk 0:03:02.7]} 4.
Nf3 {[%clk 0:03:04.4]} 4... Bg7 {[%clk 0:03:03.9]} 5. Bc4 {[%clk 0:03:05.9]}
5... e6 {[%clk 0:03:02.4]} 6. f5 {[%clk 0:03:07.5]} 6... exf5 {[%clk 0:02:56.7]}
7. d3 {[%clk 0:03:07.7]} 7... fxe4 {[%clk 0:02:55.8]} 8. dxe4 {[%clk 0:03:08.2]}
8... Ne5 {[%clk 0:02:35.5]} 9. Nxe5 {[%clk 0:03:00.5]} 9... Bxe5 {[%clk
0:02:33.5]} 10. Qf3 {[%clk 0:03:01]} 10... Qf6 {[%clk 0:02:07.5]} 11. O-O {[%clk
0:02:58.6]} 11... Qxf3 {[%clk 0:02:00.8]} 12. Rxf3 {[%clk 0:03:00.1]} 12... Nf6
{[%clk 0:02:02.1]} 13. Bg5 {[%clk 0:02:58.5]} 13... Bxc3 {[%clk 0:01:21.6]} 14.
bxc3 {[%clk 0:02:57.8]} 14... d5 {[%clk 0:01:02.1]} 15. Bxf6 {[%clk 0:02:46.8]}
15... Rg8 {[%clk 0:00:48.6]} 16. Bxd5 {[%clk 0:02:45.1]} 16... h6 {[%clk
0:00:32]} 17. Rd1 {[%clk 0:02:36.4]} 17... Rb8 {[%clk 0:00:25.8]} 18. Be5 {[%clk
0:02:34.2]} 18... Ra8 {[%clk 0:00:16.2]} 19. Bxf7+ {[%clk 0:02:31.3]} 1-0

[Event "*** Titled Tuesday Blitz"]
[Site "Chess.com"]
[Date "2019.02.05"]
[Round "4"]
[White "xberli"]
[Black "Torrentec"]
[Result "1-0"]
[WhiteElo "2535"]
[BlackElo "2405"]
[TimeControl "180+2"]
[EndTime "13:46:36 PST"]
[Termination "xberli won by resignation"]

1. e4 {[%clk 0:03:01.9]} 1... e5 {[%clk 0:02:58.4]} 2. Nf3 {[%clk 0:03:01.3]}
2... Nc6 {[%clk 0:02:58.5]} 3. Bb5 {[%clk 0:03:02.2]} 3... a6 {[%clk 0:02:57.5]}
4. Ba4 {[%clk 0:03:03.2]} 4... Nf6 {[%clk 0:02:58.2]} 5. O-O {[%clk 0:03:04.4]}
5... b5 {[%clk 0:02:59.2]} 6. Bb3 {[%clk 0:03:05.8]} 6... Be7 {[%clk 0:03:00.4]}
7. Re1 {[%clk 0:03:06.8]} 7... O-O {[%clk 0:03:00.6]} 8. a4 {[%clk 0:03:08]}
8... b4 {[%clk 0:03:00.7]} 9. d3 {[%clk 0:03:01.9]} 9... d6 {[%clk 0:03:00.8]}
10. h3 {[%clk 0:03:01.3]} 10... Be6 {[%clk 0:03:00.2]} 11. Nbd2 {[%clk
0:03:01.3]} 11... Na5 {[%clk 0:02:56]} 12. Ba2 {[%clk 0:02:58.6]} 12... Bxa2
{[%clk 0:02:55]} 13. Rxa2 {[%clk 0:03:00.5]} 13... c5 {[%clk 0:02:55.4]} 14. c4
{[%clk 0:02:58.1]} 14... bxc3 {[%clk 0:02:55.8]} 15. bxc3 {[%clk 0:03:00]} 15...
Rb8 {[%clk 0:02:50.8]} 16. Nf1 {[%clk 0:02:59.9]} 16... h6 {[%clk 0:02:48.9]}
17. Ng3 {[%clk 0:02:50.3]} 17... c4 {[%clk 0:02:49.1]} 18. d4 {[%clk 0:02:50.5]}
18... exd4 {[%clk 0:02:49.6]} 19. Nxd4 {[%clk 0:02:50.2]} 19... Nb3 {[%clk
0:02:48.6]} 20. Nc6 {[%clk 0:02:48.3]} 20... Qc7 {[%clk 0:02:45.6]} 21. Nxb8
{[%clk 0:02:48.4]} 21... Rxb8 {[%clk 0:02:47.5]} 22. Nf5 {[%clk 0:02:49]} 22...
Bf8 {[%clk 0:02:46.9]} 23. Bf4 {[%clk 0:02:48.3]} 23... Rb6 {[%clk 0:02:39.6]}
24. e5 {[%clk 0:02:41.2]} 24... dxe5 {[%clk 0:02:39.9]} 25. Bxe5 {[%clk
0:02:43.1]} 25... Qc8 {[%clk 0:02:19.9]} 26. Qf3 {[%clk 0:02:42.9]} 26... Re6
{[%clk 0:02:09.5]} 27. Rae2 {[%clk 0:02:42.7]} 27... Qe8 {[%clk 0:02:05.6]} 28.
Nxh6+ {[%clk 0:02:38.2]} 28... Kh7 {[%clk 0:01:50.1]} 29. Bxf6 {[%clk
0:02:37.3]} 29... gxf6 {[%clk 0:01:49.8]} 30. Ng4 {[%clk 0:02:29.3]} 30... Nd2
{[%clk 0:01:46.8]} 31. Qf5+ {[%clk 0:02:23.3]} 31... Kg7 {[%clk 0:01:45.1]} 32.
Rxe6 {[%clk 0:02:23.8]} 32... fxe6 {[%clk 0:01:43.8]} 33. Qxf6+ {[%clk
0:02:24.2]} 33... Kh7 {[%clk 0:01:42.8]} 34. Rxe6 {[%clk 0:02:21.3]} 34... Qxa4
{[%clk 0:01:39.4]} 35. Qf7+ {[%clk 0:02:14.4]} 35... Kh8 {[%clk 0:01:38.9]} 36.
Qxf8+ {[%clk 0:02:14.7]} 1-0

[Event "*** Titled Tuesday Blitz"]
[Site "Chess.com"]
[Date "2019.02.05"]
[Round "4"]
[White "MatsenkoSergey"]
[Black "Synctel"]
[Result "1-0"]
[WhiteElo "2696"]
[BlackElo "1886"]
[TimeControl "180+2"]
[EndTime "13:46:40 PST"]
[Termination "MatsenkoSergey won by resignation"]

1. d4 {[%clk 0:02:58.3]} 1... Nf6 {[%clk 0:03:00.2]} 2. c4 {[%clk 0:03:00.2]}
2... e6 {[%clk 0:03:00.8]} 3. Nf3 {[%clk 0:02:59.2]} 3... Bb4+ {[%clk
0:03:01.4]} 4. Nbd2 {[%clk 0:03:00.3]} 4... O-O {[%clk 0:02:57.7]} 5. a3 {[%clk
0:03:01.5]} 5... Be7 {[%clk 0:02:58.2]} 6. e4 {[%clk 0:03:02.7]} 6... c5 {[%clk
0:02:46.9]} 7. d5 {[%clk 0:02:58.3]} 7... exd5 {[%clk 0:02:43.1]} 8. cxd5 {[%clk
0:02:58.6]} 8... d6 {[%clk 0:02:43.7]} 9. Bd3 {[%clk 0:02:59.5]} 9... Re8 {[%clk
0:02:42.8]} 10. O-O {[%clk 0:03:00.7]} 10... Bf8 {[%clk 0:02:40.7]} 11. Re1
{[%clk 0:03:00.3]} 11... Bg4 {[%clk 0:02:26.8]} 12. h3 {[%clk 0:02:59.9]} 12...
Bh5 {[%clk 0:02:19]} 13. b3 {[%clk 0:03:00.6]} 13... Nbd7 {[%clk 0:02:14.1]} 14.
g4 {[%clk 0:03:00.2]} 14... Bg6 {[%clk 0:02:14.5]} 15. Qc2 {[%clk 0:02:58.8]}
15... a6 {[%clk 0:02:02.9]} 16. a4 {[%clk 0:02:57.9]} 16... b6 {[%clk
0:01:33.1]} 17. Bb2 {[%clk 0:02:58.2]} 17... Qc7 {[%clk 0:01:30.6]} 18. Nh4
{[%clk 0:02:52.5]} 18... Qb7 {[%clk 0:00:35.1]} 19. f4 {[%clk 0:02:48.9]} 19...
h6 {[%clk 0:00:30.8]} 20. Nxg6 {[%clk 0:02:48.7]} 20... fxg6 {[%clk 0:00:32.1]}
21. Bf1 {[%clk 0:02:43.3]} 21... b5 {[%clk 0:00:23.2]} 22. Bg2 {[%clk
0:02:43.2]} 22... Rac8 {[%clk 0:00:22]} 23. e5 {[%clk 0:02:43.7]} 23... Nh7
{[%clk 0:00:18]} 24. e6 {[%clk 0:02:41.8]} 24... Ndf6 {[%clk 0:00:19.2]} 25.
Qxg6 {[%clk 0:02:42.6]} 25... c4 {[%clk 0:00:19]} 26. g5 {[%clk 0:02:40.7]}
26... hxg5 {[%clk 0:00:19.6]} 27. fxg5 {[%clk 0:02:41.7]} 27... Nxd5 {[%clk
0:00:14.6]} 1-0

[Event "*** Titled Tuesday Blitz"]
[Site "Chess.com"]
[Date "2019.02.05"]
[Round "4"]
[White "twitchTriniCupid"]
[Black "salomez"]
[Result "0-1"]
[WhiteElo "2232"]
[BlackElo "2137"]
[TimeControl "180+2"]
[EndTime "13:47:09 PST"]
[Termination "salomez won by resignation"]

1. d4 {[%clk 0:03:01.9]} 1... Nf6 {[%clk 0:03:00.4]} 2. c4 {[%clk 0:03:02.3]}
2... g6 {[%clk 0:03:01.3]} 3. Nc3 {[%clk 0:03:03.6]} 3... d5 {[%clk 0:03:02.8]}
4. Nf3 {[%clk 0:03:01.9]} 4... Bg7 {[%clk 0:03:03.2]} 5. Bf4 {[%clk 0:02:58.9]}
5... c5 {[%clk 0:03:01.8]} 6. dxc5 {[%clk 0:02:51.4]} 6... Qa5 {[%clk
0:03:01.6]} 7. Qa4+ {[%clk 0:02:51]} 7... Qxa4 {[%clk 0:03:01.3]} 8. Nxa4 {[%clk
0:02:52.9]} 8... Ne4 {[%clk 0:02:56.4]} 9. Nd2 {[%clk 0:02:36.9]} 9... Bd7
{[%clk 0:02:19]} 10. Nxe4 {[%clk 0:02:20.5]} 10... dxe4 {[%clk 0:02:16.6]} 11.
Nc3 {[%clk 0:02:18.8]} 11... Bxc3+ {[%clk 0:02:10.4]} 12. bxc3 {[%clk
0:02:20.7]} 12... Na6 {[%clk 0:02:11.3]} 13. Be5 {[%clk 0:02:00]} 13... O-O
{[%clk 0:02:09.7]} 14. Bd4 {[%clk 0:01:51.1]} 14... Rfc8 {[%clk 0:02:08.4]} 15.
Rb1 {[%clk 0:01:39.7]} 15... Nxc5 {[%clk 0:01:38.7]} 16. Bxc5 {[%clk 0:01:39.5]}
16... Rxc5 {[%clk 0:01:39.6]} 17. Rxb7 {[%clk 0:01:41.4]} 17... Bc6 {[%clk
0:01:27.7]} 18. Rc7 {[%clk 0:01:13.7]} 18... Rxc4 {[%clk 0:01:26.8]} 19. e3
{[%clk 0:01:14.3]} 19... Rxc3 {[%clk 0:01:26.4]} 20. Kd2 {[%clk 0:01:15]} 20...
Rc5 {[%clk 0:01:26]} 0-1

[Event "*** Titled Tuesday Blitz"]
[Site "Chess.com"]
[Date "2019.02.05"]
[Round "4"]
[White "Anar_Aliakbarov"]
[Black "Mbneu"]
[Result "0-1"]
[WhiteElo "2458"]
[BlackElo "2266"]
[TimeControl "180+2"]
[EndTime "13:47:10 PST"]
[Termination "Mbneu won by resignation"]

1. d4 {[%clk 0:03:01.9]} 1... Nf6 {[%clk 0:02:59.9]} 2. c4 {[%clk 0:03:00]} 2...
c5 {[%clk 0:02:59.9]} 3. d5 {[%clk 0:03:00.9]} 3... e6 {[%clk 0:02:59.4]} 4. Nc3
{[%clk 0:03:01]} 4... exd5 {[%clk 0:02:59.6]} 5. cxd5 {[%clk 0:03:02.9]} 5... d6
{[%clk 0:03:01]} 6. Nf3 {[%clk 0:02:58.3]} 6... g6 {[%clk 0:03:01.4]} 7. Nd2
{[%clk 0:02:56.2]} 7... Bg7 {[%clk 0:03:00.1]} 8. e4 {[%clk 0:02:57.7]} 8... O-O
{[%clk 0:02:59.8]} 9. Be2 {[%clk 0:02:58.8]} 9... Na6 {[%clk 0:02:55]} 10. O-O
{[%clk 0:02:59]} 10... Nc7 {[%clk 0:02:52.6]} 11. a4 {[%clk 0:03:00.4]} 11... a6
{[%clk 0:02:45.6]} 12. a5 {[%clk 0:02:53.7]} 12... Bd7 {[%clk 0:02:41.6]} 13.
Nc4 {[%clk 0:02:48.4]} 13... Nb5 {[%clk 0:02:23.1]} 14. Nb6 {[%clk 0:02:49.4]}
14... Nxc3 {[%clk 0:02:15]} 15. bxc3 {[%clk 0:02:49.8]} 15... Nxe4 {[%clk
0:02:16.5]} 16. Nxa8 {[%clk 0:02:49.4]} 16... Nxc3 {[%clk 0:02:16.7]} 17. Qc2
{[%clk 0:02:49.2]} 17... Nxe2+ {[%clk 0:02:17]} 18. Qxe2 {[%clk 0:02:50]} 18...
Bb5 {[%clk 0:02:11.8]} 19. Qa2 {[%clk 0:02:33.8]} 19... Bxf1 {[%clk 0:02:10.8]}
20. Rb1 {[%clk 0:02:26.4]} 20... Bd3 {[%clk 0:01:45.2]} 21. Rxb7 {[%clk
0:01:51.2]} 21... Qxa8 {[%clk 0:01:43]} 22. Rb6 {[%clk 0:01:52.8]} 22... Qe8
{[%clk 0:01:31.8]} 23. Be3 {[%clk 0:01:49.6]} 23... Qe5 {[%clk 0:01:26.7]} 24.
g3 {[%clk 0:01:49.5]} 24... Be4 {[%clk 0:01:20]} 25. Rxa6 {[%clk 0:01:50.4]}
25... Bxd5 {[%clk 0:01:17.2]} 26. Qb1 {[%clk 0:01:51.5]} 26... Qh5 {[%clk
0:01:09]} 27. Rxd6 {[%clk 0:01:50.1]} 27... Qf3 {[%clk 0:01:09]} 28. Rxd5 {[%clk
0:01:49.8]} 28... Qxd5 {[%clk 0:01:09.6]} 29. a6 {[%clk 0:01:51.7]} 29... Bd4
{[%clk 0:01:07.6]} 30. a7 {[%clk 0:01:51.9]} 30... Bxe3 {[%clk 0:01:06.5]} 31.
fxe3 {[%clk 0:01:53.2]} 31... c4 {[%clk 0:01:01.4]} 0-1

[Event "*** Titled Tuesday Blitz"]
[Site "Chess.com"]
[Date "2019.02.05"]
[Round "4"]
[White "Witik"]
[Black "moro182"]
[Result "1-0"]
[WhiteElo "2626"]
[BlackElo "2743"]
[TimeControl "180+2"]
[EndTime "13:47:11 PST"]
[Termination "Witik won by resignation"]

1. d4 {[%clk 0:03:01.9]} 1... d5 {[%clk 0:02:59.7]} 2. c4 {[%clk 0:02:59.3]}
2... e6 {[%clk 0:03:01.1]} 3. Nf3 {[%clk 0:02:58.5]} 3... a6 {[%clk 0:03:01.8]}
4. cxd5 {[%clk 0:02:48.7]} 4... exd5 {[%clk 0:03:03.7]} 5. Nc3 {[%clk
0:02:49.3]} 5... Nf6 {[%clk 0:03:04]} 6. Bf4 {[%clk 0:02:46.3]} 6... Be6 {[%clk
0:03:05.1]} 7. e3 {[%clk 0:02:43.3]} 7... Bd6 {[%clk 0:03:06.2]} 8. Ne5 {[%clk
0:02:43.3]} 8... Nbd7 {[%clk 0:03:01.3]} 9. Bd3 {[%clk 0:02:32.1]} 9... O-O
{[%clk 0:03:00.4]} 10. O-O {[%clk 0:02:32.8]} 10... Qe7 {[%clk 0:02:59.9]} 11.
Rc1 {[%clk 0:02:19.6]} 11... h6 {[%clk 0:02:58.4]} 12. Bg3 {[%clk 0:02:12.3]}
12... Rac8 {[%clk 0:02:48.5]} 13. f4 {[%clk 0:02:10.5]} 13... Nb6 {[%clk
0:02:42.6]} 14. Bh4 {[%clk 0:02:07.6]} 14... c5 {[%clk 0:02:35.9]} 15. Ne2
{[%clk 0:02:02.7]} 15... Qd8 {[%clk 0:02:26.8]} 16. b3 {[%clk 0:01:27.2]} 16...
Be7 {[%clk 0:02:24.4]} 17. dxc5 {[%clk 0:01:27.8]} 17... Rxc5 {[%clk 0:02:20.6]}
18. Rxc5 {[%clk 0:01:27.1]} 18... Bxc5 {[%clk 0:02:22.5]} 19. Nd4 {[%clk
0:01:28.7]} 19... Bc8 {[%clk 0:02:16.5]} 20. Bb1 {[%clk 0:01:27.1]} 20... Qd6
{[%clk 0:01:46.4]} 21. Bxf6 {[%clk 0:01:24.6]} 21... gxf6 {[%clk 0:01:44.2]} 22.
Qc2 {[%clk 0:00:56.1]} 22... Re8 {[%clk 0:01:15.5]} 23. Qh7+ {[%clk 0:00:53.9]}
1-0

[Event "*** Titled Tuesday Blitz"]
[Site "Chess.com"]
[Date "2019.02.05"]
[Round "4"]
[White "GM_shahin"]
[Black "Federtiu"]
[Result "0-1"]
[WhiteElo "2725"]
[BlackElo "2647"]
[TimeControl "180+2"]
[EndTime "13:47:31 PST"]
[Termination "Federtiu won by resignation"]

1. e4 {[%clk 0:03:01.7]} 1... g6 {[%clk 0:02:59.9]} 2. d4 {[%clk 0:03:02.6]}
2... Bg7 {[%clk 0:02:58.2]} 3. Nc3 {[%clk 0:03:04]} 3... d6 {[%clk 0:02:59.4]}
4. f4 {[%clk 0:03:05.3]} 4... a6 {[%clk 0:03:00.4]} 5. Nf3 {[%clk 0:03:05.8]}
5... b5 {[%clk 0:03:01.7]} 6. Bd3 {[%clk 0:03:07.2]} 6... Nd7 {[%clk 0:03:03]}
7. O-O {[%clk 0:03:08.3]} 7... c5 {[%clk 0:03:03.6]} 8. e5 {[%clk 0:03:04.4]}
8... cxd4 {[%clk 0:03:00.8]} 9. Ne4 {[%clk 0:03:04.4]} 9... Nh6 {[%clk
0:02:27.2]} 10. exd6 {[%clk 0:03:04.2]} 10... O-O {[%clk 0:02:24.7]} 11. a4
{[%clk 0:03:04.9]} 11... Bb7 {[%clk 0:02:19.6]} 12. axb5 {[%clk 0:03:05.4]}
12... axb5 {[%clk 0:02:19.6]} 13. Rxa8 {[%clk 0:03:05.9]} 13... Bxa8 {[%clk
0:02:20.8]} 14. Qe1 {[%clk 0:03:07.3]} 14... Re8 {[%clk 0:02:17.8]} 15. Bd2
{[%clk 0:03:08.1]} 15... exd6 {[%clk 0:02:15.2]} 16. Nxd6 {[%clk 0:03:04]} 16...
Rxe1 {[%clk 0:02:10.8]} 17. Rxe1 {[%clk 0:03:05.9]} 17... Nf6 {[%clk 0:01:44.6]}
18. Nxb5 {[%clk 0:03:06.8]} 18... Bxf3 {[%clk 0:01:44.8]} 19. gxf3 {[%clk
0:03:07.3]} 19... Nf5 {[%clk 0:01:40.5]} 20. Re5 {[%clk 0:03:02.7]} 20... Nd5
{[%clk 0:01:27.9]} 21. Re4 {[%clk 0:03:00.4]} 21... Nde3 {[%clk 0:01:05.1]} 22.
Bb4 {[%clk 0:02:52.1]} 22... h5 {[%clk 0:01:02.9]} 23. Be1 {[%clk 0:02:51.8]}
23... Bf6 {[%clk 0:00:48.8]} 24. b3 {[%clk 0:02:46.4]} 24... Kg7 {[%clk
0:00:48.6]} 25. b4 {[%clk 0:02:46.5]} 25... Bh4 {[%clk 0:00:39.4]} 26. Bd2
{[%clk 0:02:47.8]} 26... Qa8 {[%clk 0:00:39]} 27. Bxe3 {[%clk 0:02:19.8]} 27...
Nxe3 {[%clk 0:00:35.3]} 28. Rxe3 {[%clk 0:02:11.9]} 28... dxe3 {[%clk
0:00:37.2]} 29. Be2 {[%clk 0:02:10]} 29... Qa1+ {[%clk 0:00:35.7]} 30. Kg2
{[%clk 0:02:10.5]} 30... Qe1 {[%clk 0:00:37.6]} 31. Nd4 {[%clk 0:02:10]} 31...
Bf6 {[%clk 0:00:38]} 0-1

[Event "*** Titled Tuesday Blitz"]
[Site "Chess.com"]
[Date "2019.02.05"]
[Round "4"]
[White "Marcus_Harvey"]
[Black "OscarAng"]
[Result "0-1"]
[WhiteElo "2693"]
[BlackElo "2397"]
[TimeControl "180+2"]
[EndTime "13:47:36 PST"]
[Termination "OscarAng won by resignation"]

1. Nf3 {[%clk 0:03:01.9]} 1... b6 {[%clk 0:02:59.6]} 2. b3 {[%clk 0:03:03.8]}
2... Bb7 {[%clk 0:03:01.5]} 3. Bb2 {[%clk 0:03:04.9]} 3... Nf6 {[%clk
0:03:02.4]} 4. e3 {[%clk 0:03:05.9]} 4... e6 {[%clk 0:03:03.8]} 5. Be2 {[%clk
0:03:07.5]} 5... Be7 {[%clk 0:02:54.6]} 6. O-O {[%clk 0:03:08.7]} 6... d5 {[%clk
0:02:55.8]} 7. c4 {[%clk 0:03:09.9]} 7... O-O {[%clk 0:02:54.6]} 8. Nc3 {[%clk
0:03:10.8]} 8... c5 {[%clk 0:02:53.6]} 9. cxd5 {[%clk 0:03:12]} 9... Nxd5 {[%clk
0:02:50.6]} 10. d4 {[%clk 0:03:12.9]} 10... Nd7 {[%clk 0:02:48]} 11. Nxd5 {[%clk
0:03:11.6]} 11... Bxd5 {[%clk 0:02:47.2]} 12. Ne5 {[%clk 0:03:12.6]} 12... Nxe5
{[%clk 0:02:46.3]} 13. dxe5 {[%clk 0:03:14.5]} 13... Bc6 {[%clk 0:02:45.6]} 14.
Qc2 {[%clk 0:03:15.4]} 14... Qc7 {[%clk 0:02:46.1]} 15. Rad1 {[%clk 0:03:14.1]}
15... Rfd8 {[%clk 0:02:43.9]} 16. f4 {[%clk 0:03:15.1]} 16... Rxd1 {[%clk
0:02:37.5]} 17. Rxd1 {[%clk 0:03:17]} 17... Rd8 {[%clk 0:02:35.6]} 18. Bf3
{[%clk 0:03:18]} 18... Bxf3 {[%clk 0:02:32.3]} 19. gxf3 {[%clk 0:03:15.6]} 19...
Rxd1+ {[%clk 0:02:29.9]} 20. Qxd1 {[%clk 0:03:17.5]} 20... Qd8 {[%clk 0:02:26]}
21. Qxd8+ {[%clk 0:03:15.1]} 21... Bxd8 {[%clk 0:02:27.9]} 22. Kf2 {[%clk
0:03:16.2]} 22... Kf8 {[%clk 0:02:23.5]} 23. Ke2 {[%clk 0:03:16.9]} 23... Ke7
{[%clk 0:02:19.3]} 24. Kd3 {[%clk 0:03:18.1]} 24... Kd7 {[%clk 0:02:12.2]} 25.
b4 {[%clk 0:03:15.5]} 25... cxb4 {[%clk 0:02:09.5]} 26. Kc4 {[%clk 0:03:16]}
26... Be7 {[%clk 0:02:05.2]} 27. Kb5 {[%clk 0:03:16.9]} 27... Bc5 {[%clk
0:02:02]} 28. Bd4 {[%clk 0:03:15.2]} 28... Bxd4 {[%clk 0:02:00.6]} 29. exd4
{[%clk 0:03:17.1]} 29... a5 {[%clk 0:01:59.4]} 30. f5 {[%clk 0:03:11.5]} 30...
h5 {[%clk 0:01:50.4]} 31. f4 {[%clk 0:03:08.2]} 31... h4 {[%clk 0:01:46.1]} 32.
h3 {[%clk 0:03:04.9]} 32... exf5 {[%clk 0:01:33.6]} 33. d5 {[%clk 0:03:04.8]}
33... Kc7 {[%clk 0:01:31.4]} 34. Kc4 {[%clk 0:02:55.2]} 34... f6 {[%clk
0:01:29.9]} 35. d6+ {[%clk 0:02:52.6]} 35... Kc6 {[%clk 0:01:28.7]} 36. Kd4
{[%clk 0:02:45.5]} 36... b5 {[%clk 0:01:22.3]} 37. exf6 {[%clk 0:02:37.9]} 37...
gxf6 {[%clk 0:01:22.3]} 38. d7 {[%clk 0:02:39.2]} 38... Kxd7 {[%clk 0:01:19.4]}
39. Kc5 {[%clk 0:02:39.4]} 39... a4 {[%clk 0:01:07.7]} 40. Kxb4 {[%clk
0:02:37.2]} 40... Kc6 {[%clk 0:01:09.3]} 41. Kc3 {[%clk 0:02:34.9]} 41... Kd5
{[%clk 0:01:10.7]} 42. Kb4 {[%clk 0:02:34.8]} 42... Ke4 {[%clk 0:00:59.7]} 43.
Kxb5 {[%clk 0:02:35.7]} 43... Kxf4 {[%clk 0:00:59.3]} 44. Kxa4 {[%clk
0:02:37.6]} 44... Kg3 {[%clk 0:01:00.9]} 45. Kb3 {[%clk 0:02:37.6]} 45... f4
{[%clk 0:01:02.8]} 0-1

[Event "*** Titled Tuesday Blitz"]
[Site "Chess.com"]
[Date "2019.02.05"]
[Round "4"]
[White "Sordis"]
[Black "chenrip"]
[Result "0-1"]
[WhiteElo "2320"]
[BlackElo "2315"]
[TimeControl "180+2"]
[EndTime "13:47:38 PST"]
[Termination "chenrip won by resignation"]

1. c4 {[%clk 0:03:01.9]} 1... c5 {[%clk 0:03:00.6]} 2. g3 {[%clk 0:03:02.3]}
2... Nc6 {[%clk 0:02:59.7]} 3. Bg2 {[%clk 0:03:03.5]} 3... b6 {[%clk 0:03:01.1]}
4. Nc3 {[%clk 0:03:02.3]} 4... Bb7 {[%clk 0:03:02.5]} 5. Nf3 {[%clk 0:03:03.4]}
5... Nd4 {[%clk 0:03:03.4]} 6. e3 {[%clk 0:02:59.8]} 6... Nxf3+ {[%clk
0:03:03.3]} 7. Bxf3 {[%clk 0:03:01.7]} 7... Bxf3 {[%clk 0:03:04.3]} 8. Qxf3
{[%clk 0:03:03.6]} 8... Nf6 {[%clk 0:03:05]} 9. b3 {[%clk 0:03:04.5]} 9... g6
{[%clk 0:03:06]} 10. Bb2 {[%clk 0:03:05.4]} 10... Bg7 {[%clk 0:03:07.3]} 11. h4
{[%clk 0:03:03.6]} 11... h5 {[%clk 0:03:07.7]} 12. d3 {[%clk 0:03:01.6]} 12...
O-O {[%clk 0:03:05.5]} 13. e4 {[%clk 0:03:02]} 13... e6 {[%clk 0:03:03.6]} 14.
e5 {[%clk 0:02:57.4]} 14... Ng4 {[%clk 0:03:04.6]} 15. Ne4 {[%clk 0:02:54]}
15... Nxe5 {[%clk 0:03:02.9]} 16. Bxe5 {[%clk 0:02:39.1]} 16... Bxe5 {[%clk
0:03:02.1]} 17. O-O-O {[%clk 0:02:40.8]} 17... d5 {[%clk 0:02:55.7]} 18. Ng5
{[%clk 0:02:39]} 18... b5 {[%clk 0:02:44.1]} 19. g4 {[%clk 0:02:34.4]} 19... Qa5
{[%clk 0:02:44.4]} 20. Qe2 {[%clk 0:02:21.3]} 20... Qc3+ {[%clk 0:02:40.7]} 21.
Qc2 {[%clk 0:02:21.8]} 21... Qa1+ {[%clk 0:02:23.9]} 22. Kd2 {[%clk 0:02:19]}
22... Bf4+ {[%clk 0:02:24.6]} 23. Ke2 {[%clk 0:02:15.3]} 23... Qe5+ {[%clk
0:02:25.2]} 24. Kf1 {[%clk 0:02:14.9]} 24... bxc4 {[%clk 0:02:17.2]} 25. gxh5
{[%clk 0:02:08.4]} 25... cxb3 {[%clk 0:02:11.3]} 26. axb3 {[%clk 0:02:08.3]}
26... Rab8 {[%clk 0:01:56.2]} 27. hxg6 {[%clk 0:01:56]} 27... fxg6 {[%clk
0:01:56.8]} 28. Re1 {[%clk 0:01:56.5]} 28... Qf5 {[%clk 0:01:51.1]} 29. Rxe6
{[%clk 0:01:27.3]} 29... Bxg5 {[%clk 0:01:46.7]} 30. Re2 {[%clk 0:01:08.7]}
30... Bh6 {[%clk 0:01:38]} 0-1